Workbook

Sheet A
B1: VLOOKUP, MATCH, INDEX, FREQUENCY, DATABASE FUNCTIONS & FREEZE PANES
A3: =NOW() -> 2025-02-27T08:33:19.680 | B3: Stock Returns by Quarter (%)
A4: Stock | B4: Qtr1 | C4: Qtr2 | D4: Qtr3 | E4: Qtr4 | F4: Annual
A5: Stock 1 | B5: 4.90719363 | C5: -0.4160723643 | D5: -1.97696138 | E5: 6.496548146 | F5: =SUM(B5:E5) -> 9.010708032 | G5: =VLOOKUP(F5,$I$9:$J$13,2) -> Buy | I5: Lookup_value
A6: Stock 2 | B6: 0.237816663 | C6: 1.965194277 | D6: -2.433372115 | E6: -0.8874255939 | F6: -1.117786769 | G6: =VLOOKUP(F6,$I$9:$J$13,2) -> Sell | L6: Lookup Table (Range Shaded Tan)
A7: Stock 3 | B7: -1.200854977 | C7: 4.840570368 | D7: 0.01605292626 | E7: 3.987971584 | F7: 7.643739901 | G7: Buy
A8: Stock 4 | B8: -1.640808663 | C8: 5.908551652 | D8: 3.461684482 | E8: 5.639798261 | F8: 13.36922573 | G8: Buy++ | I8: Return | J8: Rating | R8: Using MATCH & INDEX to find the Annual Return for any stock:
A9: Stock 5 | B9: 0.9620103102 | C9: 2.486006343 | D9: 6.48019238 | E9: -1.25809918 | F9: 8.670109854 | G9: Buy | I9: -999 | J9: Short | S9: Stock 29 | T9: <-- Input name of stock here
A10: Stock 6 | B10: 4.157704397 | C10: -2.370629289 | D10: 3.452716624 | E10: 1.820817766 | F10: 7.060609499 | G10: Buy | I10: -10 | J10: Sell | S10: =MATCH(S9,A5:A33,0) -> 29 | T10: =getformula(S10) -> <-- =MATCH(S9,A5:A33,0)
A11: Stock 7 | B11: -1.99150697 | C11: 4.840526218 | D11: -1.759435107 | E11: 6.474118408 | F11: 7.563702549 | G11: Buy | I11: 4 | J11: Watch | S11: =INDEX(A5:F33,S10,6) -> 4.263094071 | T11: =getformula(S11) -> <-- =INDEX(A5:F33,S10,6)
A12: Stock 8 | B12: 0.7571631685 | C12: -0.4787439655 | D12: 5.834789666 | E12: 3.952658755 | F12: 10.06586762 | G12: Buy++ | I12: 6 | J12: Buy | S12: =INDEX(A5:F33,MATCH(S9,A5:A33,0),6) -> 4.263094071 | T12: =getformula(S12) -> <-- =INDEX(A5:F33,MATCH(S9,A5:A33,0),6)
A13: Stock 9 | B13: 4.941523063 | C13: 3.968970694 | D13: 3.882317401 | E13: -2.581941376 | F13: 10.21086978 | G13: Buy++ | I13: 10 | J13: Buy++
A14: Stock 10 | B14: 2.497379585 | C14: -1.820847265 | D14: -1.686725199 | E14: 6.478898772 | F14: 5.468705892 | G14: Watch | I14: The VLOOKUP function finds the largest value
A15: Stock 11 | B15: 2.454776285 | C15: 2.711388684 | D15: -1.722844576 | E15: -2.966297388 | F15: 0.477023004 | G15: Sell | I15: in the first column of the Lookup Table that is | R15: MATCH, INDEX & 2-WAY DATA TABLE
A16: Stock 12 | B16: 3.470757916 | C16: 3.224638272 | D16: 5.69242419 | E16: 0.008599688231 | F16: 12.39642007 | G16: Buy++ | I16: less than or equal to the lookup_value. | R16: Column Input | T16: Row Input
A17: Stock 13 | B17: 0.2662570446 | C17: 3.769597283 | D17: -2.971692695 | E17: -0.6100695719 | F17: 0.4540920604 | G17: Sell | R17: Stock 3 | T17: 6
A18: Stock 14 | B18: 2.526749368 | C18: -0.3529090391 | D18: -0.1278128675 | E18: 1.376509474 | F18: 3.422536935 | G18: Sell | I18: Bins: The number in each Bin is the highest value counted | R18: =MATCH(R17,A5:A33,0) -> 3 | S18: =getformula(R18) -> <-- =MATCH(R17,A5:A33,0)
A19: Stock 15 | B19: 6.265453255 | C19: 6.732199737 | D19: 1.422529029 | E19: 4.240350577 | F19: 18.6605326 | G19: Buy++ | J19: by the Frequency function. | R19: =INDEX(A5:F33,R18,T17) -> 7.643739901 | S19: =getformula(R19) -> <-- =INDEX(A5:F33,R18,T17)
A20: Stock 16 | B20: 6.222262747 | C20: 0.4737998441 | D20: 2.59301909 | E20: -1.638063341 | F20: 7.651018339 | G20: Buy | I20: Below, annual returns are sorted into Bins based on size. | R20: =INDEX(A5:F33,MATCH(R17,A5:A33,0),T17) -> 7.643739901 | S20: =getformula(R20) -> <-- =INDEX(A5:F33,MATCH(R17,A5:A33,0),T17)
A21: Stock 17 | B21: -1.266711747 | C21: 0.7521571276 | D21: 3.849361366 | E21: 0.5098742364 | F21: 3.844680983 | G21: Sell | I21: Try changing cell F33 to 26 and 27 to see what happens to | T21: Stock Returns by Quarter (%)
A22: Stock 18 | B22: 0.1098335867 | C22: -0.7506414487 | D22: -0.6732427377 | E22: 6.985120037 | F22: 5.671069437 | G22: Watch | J22: the values in J33:J34. | T22: Qtr1 | U22: Qtr2 | V22: Qtr3 | W22: Qtr4 | X22: Annual | Z22: Using XLOOKUP: | AG22: Using VLOOKUP:
A23: Stock 19 | B23: -1.627292051 | C23: 6.018233877 | D23: 0.8238827511 | E23: -1.145111459 | F23: 4.069713118 | G23: Watch | I23: Bins | J23: Count | S23: =R20 -> 7.643739901 | T23: 2 | U23: 3 | V23: 4 | W23: 5 | X23: 6 | AA23: =_xlfn.FORMULATEXT(Z24) -> =XLOOKUP(S24,$A$5:$A$33,$B$5:$G$33,"????") | AH23: =_xlfn.FORMULATEXT(AG24) -> =VLOOKUP($S24,$A$5:$F$33,T$23)
A24: Stock 20 | B24: -1.574246892 | C24: 2.055833396 | D24: 4.63921954 | E24: 4.95113579 | F24: 10.07194183 | G24: Buy++ | I24: 0 | K24: =getformula(J24) -> <-- | S24: =R17 -> Stock 3 | T24: -1.200854977 | U24: 4.840570368 | V24: 0.01605292626 | W24: 3.987971584 | X24: 7.643739901 | Z24: =_xlfn.XLOOKUP(S24,$A$5:$A$33,$B$5:$G$33,"????") -> -1.200854977 | AA24: 4.840570368 | AB24: 0.01605292626 | AC24: 3.987971584 | AD24: 7.643739901 | AE24: Buy | AG24: =VLOOKUP($S24,$A$5:$F$33,T$23) -> -1.200854977 | AH24: =VLOOKUP($S24,$A$5:$F$33,U$23) -> 4.840570368 | AI24: 0.01605292626 | AJ24: 3.987971584 | AK24: 7.643739901
A25: Stock 21 | B25: 5.101267067 | C25: 5.933381295 | D25: -1.987300889 | E25: 2.529593958 | F25: 11.57694143 | G25: Buy++ | I25: 2 | K25: =getformula(J25) -> <-- | S25: Stock 2 | T25: 0.237816663 | U25: 1.965194277 | V25: -2.433372115 | W25: -0.8874255939 | X25: -1.117786769 | Z25: =_xlfn.XLOOKUP(S25,$A$5:$A$33,$B$5:$G$33,"????") -> 0.237816663 | AA25: 1.965194277 | AB25: -2.433372115 | AC25: -0.8874255939 | AD25: -1.117786769 | AE25: Sell | AG25: =VLOOKUP($S25,$A$5:$F$33,T$23) -> 0.237816663 | AH25: =VLOOKUP($S25,$A$5:$F$33,U$23) -> 1.965194277 | AI25: =VLOOKUP($S25,$A$5:$F$33,V$23) -> -2.433372115 | AJ25: =VLOOKUP($S25,$A$5:$F$33,W$23) -> -0.8874255939 | AK25: =VLOOKUP($S25,$A$5:$F$33,X$23) -> -1.117786769
A26: Stock 22 | B26: 5.639555519 | C26: 6.084799405 | D26: 0.5130656515 | E26: 5.065152934 | F26: 17.30257351 | G26: Buy++ | I26: 4 | K26: <-- | S26: Stock 22 | T26: 5.639555519 | U26: 6.084799405 | V26: 0.5130656515 | W26: 5.065152934 | X26: 17.30257351 | Z26: =_xlfn.XLOOKUP(S26,$A$5:$A$33,$B$5:$G$33,"????") -> 5.639555519 | AA26: 6.084799405 | AB26: 0.5130656515 | AC26: 5.065152934 | AD26: 17.30257351 | AE26: Buy++ | AG26: 5.639555519 | AH26: 6.084799405 | AI26: 0.5130656515 | AJ26: 5.065152934 | AK26: 17.30257351
A27: Stock 23 | B27: 6.98313604 | C27: 4.390294446 | D27: 0.6667347416 | E27: 6.532549387 | F27: 18.57271462 | G27: Buy++ | I27: 6 | K27: <-- | S27: Stock 4 | T27: -1.640808663 | U27: 5.908551652 | V27: 3.461684482 | W27: 5.639798261 | X27: 13.36922573 | Z27: =_xlfn.XLOOKUP(S27,$A$5:$A$33,$B$5:$G$33,"????") -> -1.640808663 | AA27: 5.908551652 | AB27: 3.461684482 | AC27: 5.639798261 | AD27: 13.36922573 | AE27: Buy++ | AG27: -1.640808663 | AH27: 5.908551652 | AI27: 3.461684482 | AJ27: 5.639798261 | AK27: 13.36922573
A28: Stock 24 | B28: 5.679117448 | C28: -0.3137097211 | D28: 1.718240645 | E28: 2.847490579 | F28: 9.931138951 | G28: Buy | I28: 8 | K28: <-- | S28: Stock 5 | T28: 0.9620103102 | U28: 2.486006343 | V28: 6.48019238 | W28: -1.25809918 | X28: 8.670109854 | Z28: =_xlfn.XLOOKUP(S28,$A$5:$A$33,$B$5:$G$33,"????") -> 0.9620103102 | AA28: 2.486006343 | AB28: 6.48019238 | AC28: -1.25809918 | AD28: 8.670109854 | AE28: Buy | AG28: 0.9620103102 | AH28: 2.486006343 | AI28: 6.48019238 | AJ28: -1.25809918 | AK28: 8.670109854
A29: Stock 25 | B29: 1.670751593 | C29: 2.401701079 | D29: 4.547294684 | E29: 5.331926697 | F29: 13.95167405 | G29: Buy++ | I29: 10 | K29: <-- | S29: Stock 6 | T29: 4.157704397 | U29: -2.370629289 | V29: 3.452716624 | W29: 1.820817766 | X29: 7.060609499 | Z29: =_xlfn.XLOOKUP(S29,$A$5:$A$33,$B$5:$G$33,"????") -> 4.157704397 | AA29: -2.370629289 | AB29: 3.452716624 | AC29: 1.820817766 | AD29: 7.060609499 | AE29: Buy | AG29: 4.157704397 | AH29: -2.370629289 | AI29: 3.452716624 | AJ29: 1.820817766 | AK29: 7.060609499
A30: Stock 26 | B30: 4.646036557 | C30: 3.777078011 | D30: 4.904943724 | E30: -1.921002608 | F30: 11.40705568 | G30: Buy++ | I30: 12 | K30: <-- | S30: Stock 7 | T30: -1.99150697 | U30: 4.840526218 | V30: -1.759435107 | W30: 6.474118408 | X30: 7.563702549 | Z30: =_xlfn.XLOOKUP(S30,$A$5:$A$33,$B$5:$G$33,"????") -> -1.99150697 | AA30: 4.840526218 | AB30: -1.759435107 | AC30: 6.474118408 | AD30: 7.563702549 | AE30: Buy | AG30: -1.99150697 | AH30: 4.840526218 | AI30: -1.759435107 | AJ30: 6.474118408 | AK30: 7.563702549
A31: Stock 27 | B31: 5.670256189 | C31: 5.935013214 | D31: 3.704263312 | E31: 5.790225799 | F31: 21.09975851 | G31: Buy++ | I31: 14 | K31: <-- | S31: Stock 8 | T31: 0.7571631685 | U31: -0.4787439655 | V31: 5.834789666 | W31: 3.952658755 | X31: 10.06586762 | Z31: =_xlfn.XLOOKUP(S31,$A$5:$A$33,$B$5:$G$33,"????") -> 0.7571631685 | AA31: -0.4787439655 | AB31: 5.834789666 | AC31: 3.952658755 | AD31: 10.06586762 | AE31: Buy++ | AG31: 0.7571631685 | AH31: -0.4787439655 | AI31: 5.834789666 | AJ31: 3.952658755 | AK31: 10.06586762
A32: Stock 28 | B32: 6.854154577 | C32: 5.07764293 | D32: 3.678969484 | E32: 6.494307144 | F32: 22.10507413 | G32: Buy++ | I32: 16 | K32: <-- | S32: Stock 9 | T32: 4.941523063 | U32: 3.968970694 | V32: 3.882317401 | W32: -2.581941376 | X32: 10.21086978 | Z32: =_xlfn.XLOOKUP(S32,$A$5:$A$33,$B$5:$G$33,"????") -> 4.941523063 | AA32: 3.968970694 | AB32: 3.882317401 | AC32: -2.581941376 | AD32: 10.21086978 | AE32: Buy++ | AG32: 4.941523063 | AH32: 3.968970694 | AI32: 3.882317401 | AJ32: -2.581941376 | AK32: 10.21086978
A33: Stock 29 | B33: 3.035854257 | C33: -2.02892463 | D33: -0.6654868696 | E33: 3.921651315 | F33: 4.263094071 | G33: Watch | I33: 18 | K33: <-- | S33: Stock 54 | Z33: =_xlfn.XLOOKUP(S33,$A$5:$A$33,$B$5:$G$33,"????") -> ????
B34: =B$4 -> Qtr1 | C34: =C$4 -> Qtr2 | D34: =D$4 -> Qtr3 | E34: =E$4 -> Qtr4 | F34: =F$4 -> Annual | I34: 20 | K34: <-- | S34: Stock 11 | T34: 2.454776285 | U34: 2.711388684 | V34: -1.722844576 | W34: -2.966297388 | X34: 0.477023004 | Z34: =_xlfn.XLOOKUP(S34,$A$5:$A$33,$B$5:$G$33,"????") -> 2.454776285 | AA34: 2.711388684 | AB34: -1.722844576 | AC34: -2.966297388 | AD34: 0.477023004 | AE34: Sell | AG34: 2.454776285 | AH34: 2.711388684 | AI34: -1.722844576 | AJ34: -2.966297388 | AK34: 0.477023004
B35: >-100 | C35: >0 | D35: >0 | E35: >0 | F35: >10 | I35: 22 | K35: <-- | S35: Stock 12 | T35: 3.470757916 | U35: 3.224638272 | V35: 5.69242419 | W35: 0.008599688231 | X35: 12.39642007 | Z35: =_xlfn.XLOOKUP(S35,$A$5:$A$33,$B$5:$G$33,"????") -> 3.470757916 | AA35: 3.224638272 | AB35: 5.69242419 | AC35: 0.008599688231 | AD35: 12.39642007 | AE35: Buy++ | AG35: 3.470757916 | AH35: 3.224638272 | AI35: 5.69242419 | AJ35: 0.008599688231 | AK35: 12.39642007
A36: Mean | B36: =DAVERAGE(B$4:B$33,1,B$34:B$35) -> 2.612261688 | C36: =DAVERAGE(C$4:C$33,1,C$34:C$35) -> 3.968932293 | D36: =DAVERAGE(D$4:D$33,1,D$34:D$35) -> 3.256931668 | E36: =DAVERAGE(E$4:E$33,1,E$34:E$35) -> 4.354061872 | F36: =DAVERAGE(F$4:F$33,1,F$34:F$35) -> 14.67620381 | I36: 24 | K36: <-- | S36: Stock 13 | T36: 0.2662570446 | U36: 3.769597283 | V36: -2.971692695 | W36: -0.6100695719 | X36: 0.4540920604 | Z36: =_xlfn.XLOOKUP(S36,$A$5:$A$33,$B$5:$G$33,"????") -> 0.2662570446 | AA36: 3.769597283 | AB36: -2.971692695 | AC36: -0.6100695719 | AD36: 0.4540920604 | AE36: Sell | AG36: 0.2662570446 | AH36: 3.769597283 | AI36: -2.971692695 | AJ36: -0.6100695719 | AK36: 0.4540920604
A37: Minimum | B37: =DMIN(B$4:B$33,1,B$34:B$35) -> -1.99150697 | C37: =DMIN(C$4:C$33,1,C$34:C$35) -> 0.4737998441 | D37: =DMIN(D$4:D$33,1,D$34:D$35) -> 0.01605292626 | E37: =DMIN(E$4:E$33,1,E$34:E$35) -> 0.008599688231 | F37: =DMIN(F$4:F$33,1,F$34:F$35) -> 10.06586762 | I37: 26 | K37: <-- | S37: Stock 14 | T37: 2.526749368 | U37: -0.3529090391 | V37: -0.1278128675 | W37: 1.376509474 | X37: 3.422536935 | Z37: =_xlfn.XLOOKUP(S37,$A$5:$A$33,$B$5:$G$33,"????") -> 2.526749368 | AA37: -0.3529090391 | AB37: -0.1278128675 | AC37: 1.376509474 | AD37: 3.422536935 | AE37: Sell | AG37: 2.526749368 | AH37: -0.3529090391 | AI37: -0.1278128675 | AJ37: 1.376509474 | AK37: 3.422536935
A38: Maximum | B38: =DMAX(B$4:B$33,1,B$34:B$35) -> 6.98313604 | C38: =DMAX(C$4:C$33,1,C$34:C$35) -> 6.732199737 | D38: =DMAX(D$4:D$33,1,D$34:D$35) -> 6.48019238 | E38: =DMAX(E$4:E$33,1,E$34:E$35) -> 6.985120037 | F38: =DMAX(F$4:F$33,1,F$34:F$35) -> 22.10507413 | K38: <-- | S38: Stock 15 | T38: 6.265453255 | U38: 6.732199737 | V38: 1.422529029 | W38: 4.240350577 | X38: 18.6605326 | Z38: =_xlfn.XLOOKUP(S38,$A$5:$A$33,$B$5:$G$33,"????") -> 6.265453255 | AA38: 6.732199737 | AB38: 1.422529029 | AC38: 4.240350577 | AD38: 18.6605326 | AE38: Buy++ | AG38: 6.265453255 | AH38: 6.732199737 | AI38: 1.422529029 | AJ38: 4.240350577 | AK38: 18.6605326
A39: Number | B39: =DCOUNTA(B$4:B$33,1,B$34:B$35) -> 29 | C39: =DCOUNTA(C$4:C$33,1,C$34:C$35) -> 21 | D39: =DCOUNTA(D$4:D$33,1,D$34:D$35) -> 19 | E39: =DCOUNTA(E$4:E$33,1,E$34:E$35) -> 21 | F39: =DCOUNTA(F$4:F$33,1,F$34:F$35) -> 13 | I39: For help on the FREQUENCY function visit: | S39: Stock 16 | T39: 6.222262747 | U39: 0.4737998441 | V39: 2.59301909 | W39: -1.638063341 | X39: 7.651018339 | Z39: =_xlfn.XLOOKUP(S39,$A$5:$A$33,$B$5:$G$33,"????") -> 6.222262747 | AA39: 0.4737998441 | AB39: 2.59301909 | AC39: -1.638063341 | AD39: 7.651018339 | AE39: Buy | AG39: 6.222262747 | AH39: 0.4737998441 | AI39: 2.59301909 | AJ39: -1.638063341 | AK39: 7.651018339
I40: https://www.techonthenet.com/excel/formulas/frequency.php | S40: Stock 17 | T40: -1.266711747 | U40: 0.7521571276 | V40: 3.849361366 | W40: 0.5098742364 | X40: 3.844680983 | Z40: =_xlfn.XLOOKUP(S40,$A$5:$A$33,$B$5:$G$33,"????") -> -1.266711747 | AA40: 0.7521571276 | AB40: 3.849361366 | AC40: 0.5098742364 | AD40: 3.844680983 | AE40: Sell | AG40: -1.266711747 | AH40: 0.7521571276 | AI40: 3.849361366 | AJ40: 0.5098742364 | AK40: 3.844680983
S41: Stock 18 | T41: 0.1098335867 | U41: -0.7506414487 | V41: -0.6732427377 | W41: 6.985120037 | X41: 5.671069437 | Z41: =_xlfn.XLOOKUP(S41,$A$5:$A$33,$B$5:$G$33,"????") -> 0.1098335867 | AA41: -0.7506414487 | AB41: -0.6732427377 | AC41: 6.985120037 | AD41: 5.671069437 | AE41: Watch | AG41: 0.1098335867 | AH41: -0.7506414487 | AI41: -0.6732427377 | AJ41: 6.985120037 | AK41: 5.671069437

Sheet Match Syntax

Sheet Stock Data
A1: Data/Stocks Command
A3: Select cells containing ticker symbols (Tan fill)
A4: On the ribbon select Data/Stocks
C6: =_FV(B6,"Ticker symbol",TRUE) -> AAPL | D6: =_FV(B6,"Price") -> 240.36 | E6: =_FV(B6,"Change (%)",TRUE) -> -0.02704
C7: =_FV(B7,"Ticker symbol",TRUE) -> MSFT | D7: =_FV(B7,"Price") -> 399.73 | E7: =_FV(B7,"Change (%)",TRUE) -> 0.004599
C8: =_FV(B8,"Ticker symbol",TRUE) -> MMM | D8: =_FV(B8,"Price") -> 147.43 | E8: =_FV(B8,"Change (%)",TRUE) -> 0.006073
C9: =_FV(B9,"Ticker symbol",TRUE) -> AEP | D9: =_FV(B9,"Price") -> 106.89 | E9: =_FV(B9,"Change (%)",TRUE) -> -0.006968
C10: =_FV(B10,"Ticker symbol",TRUE) -> BRKA | D10: =_FV(B10,"Price") -> 451500 | E10: =_FV(B10,"Change (%)",TRUE) -> 0.001109
A12: Select all stocks (Tan Fill) & click Insert Data icon to upper right to add data to table.
A13: Select all stocks (Tan Fill) & Right click. Select Data Type/Refresh to update table.
A14: Click icon to left of stock name for more firm information.
A16: Web: | B16: https://www.excel-university.com/articles/cal-cpa/get-current-and-historical-stock-prices-into-excel/

Sheet ASoln (hidden)
B1: VLOOKUP TABLE
B2: Database Functions | E2: =NOW() -> 2025-02-27T08:33:19.680
B3: Stock Returns by Quarter (%)
A4: Stock | B4: Qtr1 | C4: Qtr2 | D4: Qtr3 | E4: Qtr4 | F4: Annual
A5: Stock 1 | B5: 4.90719363 | C5: -0.4160723643 | D5: -1.97696138 | E5: 6.496548146 | F5: =SUM(B5:E5) -> 9.010708032 | G5: =VLOOKUP(F5,$I$9:$J$13,2) -> B | I5: Lookup_value
A6: Stock 2 | B6: 0.237816663 | C6: 1.965194277 | D6: -2.433372115 | E6: -0.8874255939 | F6: =SUM(B6:E6) -> -1.117786769 | G6: =VLOOKUP(F6,$I$9:$J$13,2) -> F | L6: Lookup Table (Range Shaded Tan)
A7: Stock 3 | B7: -1.200854977 | C7: 4.840570368 | D7: 0.01605292626 | E7: 3.987971584 | F7: 7.643739901 | G7: B
A8: Stock 4 | B8: -1.640808663 | C8: 5.908551652 | D8: 3.461684482 | E8: 5.639798261 | F8: 13.36922573 | G8: A | I8: Return | J8: Grade
A9: Stock 5 | B9: 0.9620103102 | C9: 2.486006343 | D9: 6.48019238 | E9: -1.25809918 | F9: 8.670109854 | G9: B | I9: -100 | J9: F | P9: Stock 3
A10: Stock 6 | B10: 4.157704397 | C10: -2.370629289 | D10: 3.452716624 | E10: 1.820817766 | F10: 7.060609499 | G10: B | I10: 0 | J10: D | P10: =MATCH(P9,A5:A33,0) -> 3 | Q10: =getformula(P10) -> <-- =MATCH(P9,A5:A33,0)
A11: Stock 7 | B11: -1.99150697 | C11: 4.840526218 | D11: -1.759435107 | E11: 6.474118408 | F11: 7.563702549 | G11: B | I11: 4 | J11: C | P11: =INDEX(A5:F33,P10,6) -> 7.643739901 | Q11: =getformula(P11) -> <-- =INDEX(A5:F33,P10,6)
A12: Stock 8 | B12: 0.7571631685 | C12: -0.4787439655 | D12: 5.834789666 | E12: 3.952658755 | F12: 10.06586762 | G12: A | I12: 6 | J12: B | P12: =INDEX(A5:F33,MATCH(P9,A5:A33,0),6) -> 7.643739901 | Q12: =getformula(P12) -> <-- =INDEX(A5:F33,MATCH(P9,A5:A33,0),6)
A13: Stock 9 | B13: 4.941523063 | C13: 3.968970694 | D13: 3.882317401 | E13: -2.581941376 | F13: 10.21086978 | G13: A | I13: 10 | J13: A
A14: Stock 10 | B14: 2.497379585 | C14: -1.820847265 | D14: -1.686725199 | E14: 6.478898772 | F14: 5.468705892 | G14: C
A15: Stock 11 | B15: 2.454776285 | C15: 2.711388684 | D15: -1.722844576 | E15: -2.966297388 | F15: 0.477023004 | G15: D | I15: The VLOOKUP function finds the largest value
A16: Stock 12 | B16: 3.470757916 | C16: 3.224638272 | D16: 5.69242419 | E16: 0.008599688231 | F16: 12.39642007 | G16: A | I16: in the first column of the Lookup Table that is
A17: Stock 13 | B17: 0.2662570446 | C17: 3.769597283 | D17: -2.971692695 | E17: -0.6100695719 | F17: 0.4540920604 | G17: D | I17: less than or equal to the lookup_value.
A18: Stock 14 | B18: 2.526749368 | C18: -0.3529090391 | D18: -0.1278128675 | E18: 1.376509474 | F18: 3.422536935 | G18: D
A19: Stock 15 | B19: 6.265453255 | C19: 6.732199737 | D19: 1.422529029 | E19: 4.240350577 | F19: 18.6605326 | G19: A | I19: Bins | J19: Count
A20: Stock 16 | B20: 6.222262747 | C20: 0.4737998441 | D20: 2.59301909 | E20: -1.638063341 | F20: 7.651018339 | G20: B | I20: 0 | J20: =FREQUENCY(F5:F33,I20:I33) -> 1 | K20: =getformula(J20) -> <-- {=FREQUENCY(F5:F33,I20:I33)}
A21: Stock 17 | B21: -1.266711747 | C21: 0.7521571276 | D21: 3.849361366 | E21: 0.5098742364 | F21: 3.844680983 | G21: D | I21: 2 | J21: 2 | K21: =getformula(J21) -> <-- {=FREQUENCY(F5:F33,I20:I33)}
A22: Stock 18 | B22: 0.1098335867 | C22: -0.7506414487 | D22: -0.6732427377 | E22: 6.985120037 | F22: 5.671069437 | G22: C | I22: 4 | J22: 2 | K22: <-- {=FREQUENCY(F5:F33,I20:I33)}
A23: Stock 19 | B23: -1.627292051 | C23: 6.018233877 | D23: 0.8238827511 | E23: -1.145111459 | F23: 4.069713118 | G23: C | I23: 6 | J23: 4 | K23: <-- {=FREQUENCY(F5:F33,I20:I33)}
A24: Stock 20 | B24: -1.574246892 | C24: 2.055833396 | D24: 4.63921954 | E24: 4.95113579 | F24: 10.07194183 | G24: A | I24: 8 | J24: 4 | K24: <-- {=FREQUENCY(F5:F33,I20:I33)}
A25: Stock 21 | B25: 5.101267067 | C25: 5.933381295 | D25: -1.987300889 | E25: 2.529593958 | F25: 11.57694143 | G25: A | I25: 10 | J25: 3 | K25: <-- {=FREQUENCY(F5:F33,I20:I33)}
A26: Stock 22 | B26: 5.639555519 | C26: 6.084799405 | D26: 0.5130656515 | E26: 5.065152934 | F26: 17.30257351 | G26: A | I26: 12 | J26: 5 | K26: <-- {=FREQUENCY(F5:F33,I20:I33)}
A27: Stock 23 | B27: 6.98313604 | C27: 4.390294446 | D27: 0.6667347416 | E27: 6.532549387 | F27: 18.57271462 | G27: A | I27: 14 | J27: 3 | K27: <-- {=FREQUENCY(F5:F33,I20:I33)}
A28: Stock 24 | B28: 5.679117448 | C28: -0.3137097211 | D28: 1.718240645 | E28: 2.847490579 | F28: 9.931138951 | G28: B | I28: 16 | J28: 0 | K28: <-- {=FREQUENCY(F5:F33,I20:I33)}
A29: Stock 25 | B29: 1.670751593 | C29: 2.401701079 | D29: 4.547294684 | E29: 5.331926697 | F29: 13.95167405 | G29: A | I29: 18 | J29: 1 | K29: <-- {=FREQUENCY(F5:F33,I20:I33)}
A30: Stock 26 | B30: 4.646036557 | C30: 3.777078011 | D30: 4.904943724 | E30: -1.921002608 | F30: 11.40705568 | G30: A | I30: 20 | J30: 2 | K30: <-- {=FREQUENCY(F5:F33,I20:I33)}
A31: Stock 27 | B31: 5.670256189 | C31: 5.935013214 | D31: 3.704263312 | E31: 5.790225799 | F31: 21.09975851 | G31: A | I31: 22 | J31: 1 | K31: <-- {=FREQUENCY(F5:F33,I20:I33)}
A32: Stock 28 | B32: 6.854154577 | C32: 5.07764293 | D32: 3.678969484 | E32: 6.494307144 | F32: 22.10507413 | G32: A | I32: 24 | J32: 1 | K32: <-- {=FREQUENCY(F5:F33,I20:I33)}
A33: Stock 29 | B33: 3.035854257 | C33: -2.02892463 | D33: -0.6654868696 | E33: 3.921651315 | F33: 4.263094071 | G33: C | I33: 26 | J33: 0 | K33: <-- {=FREQUENCY(F5:F33,I20:I33)}
B34: =B$4 -> Qtr1 | C34: =C$4 -> Qtr2 | D34: =D$4 -> Qtr3 | E34: =E$4 -> Qtr4 | F34: =F$4 -> Annual
B35: >-100 | C35: >0 | D35: >0 | E35: >0 | F35: >10
A36: Mean | B36: =DAVERAGE(B$4:B$33,1,B$34:B$35) -> 2.612261688 | C36: =DAVERAGE(C$4:C$33,1,C$34:C$35) -> 3.968932293 | D36: =DAVERAGE(D$4:D$33,1,D$34:D$35) -> 3.256931668 | E36: =DAVERAGE(E$4:E$33,1,E$34:E$35) -> 4.354061872 | F36: =DAVERAGE(F$4:F$33,1,F$34:F$35) -> 14.67620381
A37: Minimum | B37: =DMIN(B$4:B$33,1,B$34:B$35) -> -1.99150697 | C37: =DMIN(C$4:C$33,1,C$34:C$35) -> 0.4737998441 | D37: =DMIN(D$4:D$33,1,D$34:D$35) -> 0.01605292626 | E37: =DMIN(E$4:E$33,1,E$34:E$35) -> 0.008599688231 | F37: =DMIN(F$4:F$33,1,F$34:F$35) -> 10.06586762
A38: Maximum | B38: =DMAX(B$4:B$33,1,B$34:B$35) -> 6.98313604 | C38: =DMAX(C$4:C$33,1,C$34:C$35) -> 6.732199737 | D38: =DMAX(D$4:D$33,1,D$34:D$35) -> 6.48019238 | E38: =DMAX(E$4:E$33,1,E$34:E$35) -> 6.985120037 | F38: =DMAX(F$4:F$33,1,F$34:F$35) -> 22.10507413
A39: Number | B39: =DCOUNTA(B$4:B$33,1,B$34:B$35) -> 29 | C39: =DCOUNTA(C$4:C$33,1,C$34:C$35) -> 21 | D39: =DCOUNTA(D$4:D$33,1,D$34:D$35) -> 19 | E39: =DCOUNTA(E$4:E$33,1,E$34:E$35) -> 21 | F39: =DCOUNTA(F$4:F$33,1,F$34:F$35) -> 13
